Cogmind - Beta 16 @@@ ROGUE MODE // 2025.11.06 @ 17:44:54 Player: Mozco Result: Destroyed by YI-UF0 with YI-UF0's Doublenader Performance ------------- Evolutions (0) 0 Regions Visited (2) 400 Robots Destroyed (17) 85 Value Destroyed (545) 545 Prototype IDs (5) 100 Alien Tech Used (0) 0 Bonus (0) 0 TOTAL SCORE: 1130 Bonus ------- None Cogmind --------- Core Integrity 0/250 Matter 263/300 Energy 74/100 System Corruption 0% Temperature Cool (0) Movement Walking (190) Ox1 Location -10/Mines Parts ------- > --- POWER (1) -------- (None) > --- PROPULSION (2) --- Aluminum Leg > --- UTILITY (2) ------ Medium Storage Unit > --- WEAPON (2) ------- Assault Rifle Grenade Launcher > --- INVENTORY (10) --- Ion Engine Light Ion Engine Light Nuclear Core Aluminum Leg Cooling System Large Storage Unit High-capacity Battery (250) Targeting Computer Peak State ------------ > --- POWER ------------ Ion Engine > --- PROPULSION ------- Aluminum Leg Aluminum Leg > --- UTILITY ---------- Cooling System Small Storage Unit > --- WEAPON ----------- Heavy EM Pulse Gun Heavy EM Pulse Gun > --- INVENTORY -------- Light Ion Engine Light Nuclear Core Aluminum Leg Cooling System Targeting Computer Heavy EM Pulse Gun Heavy EM Pulse Gun [Rating: 11] Favorites ----------- Power Ion Engine Engine Ion Engine Propulsion Aluminum Leg Leg Aluminum Leg Utility Medium Storage Unit Device Cooling System Storage Medium Storage Unit Protection Light Armor Plating Weapon Heavy EM Pulse Gun Energy Gun Heavy EM Pulse Gun Ballistic Gun Assault Rifle Launcher Grenade Launcher Build | -11 -10 -10 ------- Run | Yrd Mat Min Slots Evolved . | . . . Power . | . . . Propulsion . | . . . Utility . | . . . Weapon . | . . . Parts Attached 18 | . 16 2 Power 2 | . 2 . Engine 2 | . 2 . Core . | . . . Reactor . | . . . Propulsion 5 | . 4 1 Treads . | . . . Leg 5 | . 4 1 Wheel . | . . . Hover . | . . . Flight . | . . . Utility 4 | . 4 . Device 1 | . 1 . Storage 2 | . 2 . Processor . | . . . Hackware . | . . . Protection 1 | . 1 . Artifact . | . . . Weapon 7 | . 6 1 Energy Gun 4 | . 4 . Energy Cannon . | . . . Ballistic Gun 2 | . 2 . Ballistic Cannon . | . . . Launcher 1 | . . 1 Special Weapon . | . . . Impact Weapon . | . . . Slashing Weapon . | . . . Piercing Weapon . | . . . Special Melee Weapon . | . . . Unidentified Prototypes . | . . . Parts Lost 8 | . 3 5 Power 1 | . . 1 Propulsion 2 | . . 2 Utility 1 | . . 1 Weapon 4 | . 3 1 Highest Loss Streak 5 | . 2 5 To Critical Strikes . | . . . Average Backups 8 | 2 7 10 Power 2 | 1 2 3 Propulsion 1 | 1 1 2 Utility 3 | . 3 4 Weapon . | . . . Tool/Special . | . . . Unused Backups 8 | . 1 7 Power 2 | . . 2 Propulsion 1 | . . 1 Utility 5 | . 1 4 Weapon . | . . . Tool/Special . | . . . Average Slot Usage (%) 94 | . 94 97 Engine 13 | . 13 13 Leg 27 | . 27 27 Device 6 | . 7 . Storage 13 | . 13 14 Protection 7 | . 6 13 Energy Gun 19 | . 20 13 Ballistic Gun 6 | . 4 14 Peak Build Rating 11 | . 11 9 Average Rating 9 | . 9 8 On Entrance 3 | . . 9 Avg Prop Armor Cover (%) . | . . . Naked Turns 27 | . 27 . Heaviest Build 23 | . 23 23 Greatest Support 20 | 3 20 20 Greatest Overweight (x) 1 | . 1 1 Average Overweight (x) . | . . 1 Largest Inventory Capacity 10 | 5 10 10 Average Capacity 9 | 5 9 10 Most Carried 10 | 5 10 10 Average Carried 8 | 3 8 9 Final Capacity 10 | 5 10 10 Final Carried 10 | 5 10 8 Class Distribution -------------------- 100% | Mutant Dominant Class ---------------- Mutant | -10/Materials Mutant | -10/Mines Resources | -11 -10 -10 ----------- Run | Yrd Mat Min Matter Collected 382 | 142 203 37 Remotely . | . . . Salvage Created 667 | . 667 . Parts 34 | . 34 . Haulers Intercepted . | . . . Recyclers Shooed 2 | . 2 . Parts Field Recycled . | . . . Retrieved Matter . | . . . Parts Self-Destructed . | . . . Prevented . | . . . Parts Restored . | . . . Kills | -11 -10 -10 ------- Run | Yrd Mat Min Combat Hostiles Destroyed 13 | . 13 . Guns 10 | . 10 . AOE 2 | . 2 . Classes Destroyed 4 | . 4 . Recycler 1 | . 1 . Operator 1 | . 1 . Watcher 2 | . 2 . Grunt 13 | . 13 . Best Kill Streak 3 | . 3 . Combat Bots Only 3 | . 3 . Max Kills in Single Turn 1 | . 1 . Gunslinging . | . . . Exploded 1 | . 1 . Melee . | . . . Uniques/NPCs Destroyed . | . . . Combat | -11 -10 -10 -------- Run | Yrd Mat Min Hostile Shots Fired 74 | . 56 18 Missed 21 | . 15 6 Hits 53 | . 41 12 Projectile 53 | . 41 12 AOE 14 | . . 14 Damage Taken 1125 | . 617 508 Core 263 | . 135 128 Absorbed by Shields . | . . . Core Remaining (%) 100 | 100 . . Volleys Fired 54 | . 47 7 Largest 2 | . 2 2 Hottest 90 | . 90 65 Shots Fired 98 | . 88 10 Gun 97 | . 88 9 Cannon . | . . . Launcher 1 | . . 1 Special . | . . . Kinetic 14 | . 7 7 Thermal . | . . . Explosive 1 | . . 1 Electromagnetic 83 | . 81 2 Robot Hit Streak 8 | . 8 5 Robot Miss Streak 4 | . 4 2 Penetration Max . | . . . Secondary Targets 3 | . 3 . Max Gunslinging Chain 1 | . 1 . Shots Hit Robots 57 | . 50 7 Core Hits 23 | . 23 . Critical Kills . | . . . Critical Parts Destroyed . | . . . Critical Strikes 4 | . 4 . Corrupt 4 | . 4 . Melee Attacks . | . . . Impact . | . . . Slashing . | . . . Piercing . | . . . Sneak Attacks . | . . . Combat Hostiles . | . . . Follow-up Attacks . | . . . Damage Inflicted 1315 | . 1235 80 Guns 974 | . 901 73 Cannons . | . . . Explosions 341 | . 334 7 Melee . | . . . Ramming . | . . . Kinetic 96 | . 35 61 Thermal 334 | . 334 . Explosive 7 | . . 7 Electromagnetic 878 | . 866 12 Impact . | . . . Slashing . | . . . Piercing . | . . . Highest Corruption . | . . . Average Corruption . | . . . Corruption Purged . | . . . Corruption Blocked . | . . . Overload Shots . | . . . Overflow Damage 16 | . 16 . Projectiles . | . . . Explosions 16 | . 16 . Melee . | . . . Knockbacks . | . . . Impact . | . . . Kinetic . | . . . Secondary . | . . . Self-Inflicted Damage 77 | . 48 29 Shots 3 | . 2 1 Rammed . | . . . Targets Rammed . | . . . Kicked . | . . . Crushed . | . . . Highest Temperature 43 | . 43 21 Average Temperature 13 | . 14 13 Received Heat Transfer 300 | . 300 . Siege Activations . | . . . Martial Activations . | . . . Shielding Activations . | . . . Robots Disrupted . | . . . Combat Hostiles . | . . . Robots Corrupted 1 | . 1 . Combat Hostiles 1 | . 1 . Parts Fried 1 | . 1 . Impact Corruptions . | . . . Robots Melted . | . . . Combat Hostiles . | . . . Parts Melted . | . . . Heat Transferred 600 | . 600 . Parts Sabotaged . | . . . Parts Stolen . | . . . Parts Stripped . | . . . Power Chain Reactions 7 | . 7 . Alert | -11 -10 -10 ------- Run | Yrd Mat Min Maximum Alert Level 1 | . 1 . Low Security (%) 89 | 100 87 100 Level 1 10 | . 12 . Level 2 . | . . . Level 3 . | . . . Level 4 . | . . . Level 5 . | . . . High Security . | . . . Max Security . | . . . Peak Influence 232 | . 232 46 Initial 46 | . . 46 Average 108 | . 128 11 Influence Increases 540 | . 538 2 Destroy 0b10 Robot/C 260 | . 260 . Destroy 0b10 Robot/NC 20 | . 20 . Destroy Leader 74 | . 74 . Successful Hack 50 | . 50 . Select Force Hacks 60 | . 60 . Disable Machine 15 | . 15 . Destroy Structure 31 | . 29 2 Lose Combat Pursuer 30 | . 30 . Influence Decreases 538 | . 419 119 Entered New Map 73 | . . 73 Time Decay 435 | . 389 46 Lost Part 30 | . 30 . Squads Dispatched 6 | . 6 . Investigation 5 | . 5 . Extermination . | . . . Reinforcement 1 | . 1 . Assault . | . . . Garrison . | . . . Intercept . | . . . Searches Triggered . | . . . Construction Impeded . | . . . Haulers Reinforced . | . . . Active Scanning Responses . | . . . Cargo Convoy Interrupts . | . . . Stealth | -11 -10 -10 --------- Run | Yrd Mat Min Distress Signals 2 | . 2 . Communications Jammed . | . . . Distress Signals . | . . . Times Spotted 24 | . 23 1 Peak Tracking Total 3 | . 3 1 Tactical Retreats 1 | . 1 . Traps | -11 -10 -10 ------- Run | Yrd Mat Min Traps Triggered 2 | . 2 . Indirectly . | . . . Trap Hack Attempts . | . . . Triggered . | . . . Disarmed . | . . . Reprogrammed . | . . . Reused . | . . . Traps Extracted . | . . . Installed . | . . . Triggered . | . . . Machines | -11 -10 -10 ---------- Run | Yrd Mat Min Machines Disabled 1 | . 1 . Max in Single Turn 1 | . 1 . Machines Repaired . | . . . Machines Dismantled . | . . . Machines Sabotaged . | . . . Overloaded Fab Kills . | . . . Hacking | -11 -10 -10 --------- Run | Yrd Mat Min Machines Accessed 8 | . 8 . Terminals 6 | . 6 . Fabricators . | . . . Repair Stations . | . . . Recycling Units 2 | . 2 . Scanalyzers . | . . . Garrison Access . | . . . Total Hacks 28 | . 28 . Successful 16 | . 16 . Failed 12 | . 12 . Catastrophic 2 | . 2 . Database Lockouts . | . . . Manual 21 | . 21 . Terminals 24 | . 24 . Fabricators . | . . . Repair Stations . | . . . Recycling Units 4 | . 4 . Scanalyzers . | . . . Garrison Access . | . . . Terminal Hacks 7 | . 7 . Robot Analysis 3 | . 3 . Prototype ID Bank 3 | . 3 . Zone Layout 1 | . 1 . Fabricator Hacks . | . . . Repair Station Hacks . | . . . Recycling Unit Hacks . | . . . Scanalyzer . | . . . Garrison Access Hacks . | . . . Unauthorized Hacks 9 | . 9 . Terminals 7 | . 7 . Assimilate 3 | . 3 . Botnet 3 | . 3 . Operators 1 | . 1 . Fabricators . | . . . Repair Stations . | . . . Recycling Units 2 | . 2 . Tunnel 2 | . 2 . Scanalyzers . | . . . Garrison Access . | . . . Data Cores Recovered . | . . . Used . | . . . Hacking Detections 7 | . 7 . Full Trace Events 4 | . 4 . Feedback Events . | . . . Feedback Blocked . | . . . Robot Schematics Acquired . | . . . Robots Built . | . . . Authchips . | . . . Time . | . . . Total Robot Build Rating . | . . . Part Schematics Acquired . | . . . Parts Built . | . . . Authchips . | . . . Time . | . . . Total Part Build Rating . | . . . Part Studies Acquired . | . . . Parts Repaired . | . . . Time . | . . . Parts Recycled . | . . . Recycled Matter . | . . . Retrieved Matter . | . . . Retrieved Components . | . . . Parts Scanalyzed . | . . . Part Schematics Acquired . | . . . Parts Damaged . | . . . Bothacking | -11 -10 -10 ------------ Run | Yrd Mat Min Used RIF Installer . | . . . Robots Hacked . | . . . Non-combat . | . . . Combat . | . . . Robot Hacks Applied . | . . . Relay Couplers Released . | . . . Fabnet Peak Effective % . | . . . Robots Rewired . | . . . Allies Hacked . | . . . Hacks Repelled . | . . . Allies | -11 -10 -10 -------- Run | Yrd Mat Min Total Allies . | . . . Largest Group . | . . . Highest-Rated Group . | . . . Highest-Rated Ally . | . . . Total Orders . | . . . Ally Attacks . | . . . Total Damage . | . . . Kills . | . . . Allies Corrupted . | . . . Allies Melted . | . . . Intel | -11 -10 -10 ------- Run | Yrd Mat Min Active Infowar (turns) . | . . . Robot Analysis Total 3 | . 3 . Derelict Logs Recovered 1 | . . 1 Drone Launches . | . . . Drone Recoveries . | . . . Exploration | -11 -10 -10 ------------- Run | Yrd Mat Min Turns Passed 1368 | 25 1128 215 Spaces Moved 779 | 39 638 102 Core 92 | 39 53 . Treads . | . . . Legs 687 | . 585 102 Wheels . | . . . Hover . | . . . Flight . | . . . Fastest Speed 50 | 50 50 190 Average Speed 148 | 50 147 190 Slowest Speed 190 | 50 190 190 Overloaded Moves . | . . . Propulsion Burnouts . | . . . Robots Hopped . | . . . Potential Cave-ins . | . . . Cave-ins Triggered . | . . . Exploration Rate (%) 42 | 3 91 32 Regions Visited 2 Branch Regions 1 Pre-discovered Areas 3 | . 2 1 Known Exits Taken . | . . . Unknown Exits Taken 2 | 1 1 . Scrap Searched 2 | . . 2 Spaces Dug . | . . . Terrain Destroyed 30 | . 27 3 Melee . | . . . Projectile . | . . . AOE 30 | . 27 3 Terrain Rammed . | . . . Walls Destroyed . | . . . Machines Disabled . | . . . Actions | -11 -10 -10 --------- Run | Yrd Mat Min Total 893 | 43 735 115 Wait 19 | . 17 2 Move 777 | 38 637 102 Hop . | . . . Pick Up 17 | 5 11 1 Fast Attach 4 | . 4 . Attach 8 | . 6 2 Detach . | . . . Swap 7 | . 7 . Drop 7 | . 6 1 Fire 54 | . 47 7 Melee . | . . . Ram . | . . . Kick . | . . . Crush . | . . . Escape Stasis . | . . . Rewire . | . . . Trap . | . . . Miscellaneous . | . . . Route ------- -11/Scrapyard -10/Materials (discovered 5 exits: [*Mat x3] / [*Min x2]) -10/Mines (discovered 2 exits: [*Mat x2]) History --------- Turn | Location | Event 8 | -11/Scrapyard | Discovered new exit (range 15) 26 | -11/Scrapyard | Entered Materials 177 | -10/Materials | Discovered new exit (range 8) 318 | -10/Materials | Build established: Mutant 432 | -10/Materials | Discovered new exit (range 17) 666 | -10/Materials | Discovered new exit (range 12) 774 | -10/Materials | Discovered new exit (range 16) 869 | -10/Materials | Discovered new exit (range 12) 1152 | -10/Materials | Core integrity fell below 50% 1154 | -10/Materials | Entered Mines 1155 | -10/Mines | Learned location of Storage (-8) 1173 | -10/Mines | Discovered new exit (range 15) 1219 | -10/Mines | Learned Materials security intel 1312 | -10/Mines | Discovered new exit (range 12) 1334 | -10/Mines | YI-UF0 nonchalantly dropped a Grenade Launcher on the ground 1366 | -10/Mines | Core integrity fell below 20% 1369 | -10/Mines | Destroyed by YI-UF0 with YI-UF0's Doublenader Last Messages --------------- 01252_ Acquired 37 matter. 01273_ T-07 Excavator is excavating. 01293_ Searching scrap... 01293_ Found Sensor Array. 01293_ Found Huge Storage Unit. 01293_ Found 44 Matter. 01312_ EXIT=FOUND 01334_ YI-UF0 nonchalantly drops a Grenade Launcher on the ground. 01334_ YI-UF0 mumbles something. 01339_ Dropped Cooling System. 01339_ Acquired Grenade Launcher. 01354_ YI-UF0 mumbles something. 01354_ YI-UF0: "BOOM TO YOU TOO!" 01355_ Aluminum Leg destroyed. 01357_ Hvy. EM Pulse Gun destroyed. 01357_ Lgt. Armor Plating destroyed. 01358_ The unstable cave ceiling collapses. 01359_ Ion Engine destroyed. 01363_ The unstable cave ceiling collapses. 01363_ Aluminum Leg destroyed. Map ----- +----------------------------------------------------+ | ????????????????????????????? | | ????????????????????????????? | | ????????????????????????????? | | ????????????????????????????? | | ????????????????????????????? | | ????????????????????????????? | | ????????????????????????????? | | ????????????????????????????? | | ????????????????????????????? | | ????????????????????????????? | | ????????????????????????????? | | ????????????????????????????? | | ????????????????????????????? | | ????????????????????????????? | | ????????????????????????????? | | ????????????????????????????? | | ????????????????????????????? | | ????????????????????????????? | | ??????#####?????????????????? | | ???### #?????????????????? | | #### #?????????????????? | | #??????????##?????? | | < ##????????? ?????? | | ### #???# ?????? | | #????# #??#?? | | @ # ###????# #? #?? | | ### ##??????# ## ??? | | g #??###???????# ???# | | # #????????????# #??## | | # #????????????# #### | | ## ###???????????## | | ?### #????????????## "" | | ???# #??????????### "" | | ???# #?????????## "" | | ???# ########### ## | | ???# !%! ######## | | ???############### #??????## | | ?????????????????####???????# | | ????????????????????????????? | | ????????????????????????????? | | ????????????????????????????? | | ????????????????????????????? | | ????????????????????????????? | | ????????????????????????????? | | | | | | | | | | | | | +----------------------------------------------------+ Best States ------------- Heat Dissipation 47 Energy Generation 10 Energy Capacity 250 Matter Stores 300 Matter Capacity 300 Sight Range 16 Terrain Scan Density 10 Armor Coverage 150 Evasion (%) 55 Item Schematics ----------------- None Robot Schematics ------------------ None Fabricated ------------ Nothing Repaired ---------- Nothing Studied --------- None Alien Tech Used ----------------- None Achievements -------------- None Challenges ------------ None Game ------ Seed OpticalShrapnelSegregator Manual? 0 Play Time 00:11:56 Cumulative 224.2 hours Start 2025.11.06 @ 17:34:26 End 2025.11.06 @ 17:44:54 Sessions 1 Manual Loads 0 Difficulty Rogue Special Mode None Game No. 230 Rogue 226 Adventurer 3 Explorer 1 Win Type - Total 1 Types 1/0/0/0/0/0/0/0/0/0 Lore% 72 Gallery% 73 Achievement% 56 Wizard Run 0 Options --------- Layout 0 ASCII 0 Keyboard 0 Movement Mouse Keybinds 0 Fullscreen 2 Font 18/SmallcapsGlow Map View 76x50 Zoom Use 0% Tactical HUD 1 Map Filters NONE Filters NONE Steam 1 RUN: 945612e4-ec17-4706-a1ec-1603f9ddc8c3